Cogmind - Beta 11.1 @@@ ROGUE MODE // 2022.05.24 @ 11:53:26 Player: Demise Result: Destroyed by D-53 Grenadier with Mini Grenade Launcher Performance ------------- Evolutions (0) 0 Regions Visited (2) 400 Robots Destroyed (28) 140 Value Destroyed (560) 560 Prototype IDs (4) 80 Alien Tech Used (0) 0 Bonus (0) 0 TOTAL SCORE: 1180 Bonus ------- None Cogmind --------- Core Integrity 0/250 Matter 287/300 Energy 250/250 System Corruption 0% Temperature Cool (10) Movement Rolling (100) Location -10/Mines Parts ------- > --- POWER (1) -------- Ion Engine > --- PROPULSION (2) --- Compact Wheel > --- UTILITY (2) ------ Medium Storage Unit Signal Interpreter > --- WEAPON (2) ------- Light Assault Rifle > --- INVENTORY (10) --- Improved Aluminum Leg Improved Aluminum Leg Flexi-carbon Leg Wheel Wheel Phase Shifter Hacking Suite Mini Grenade Launcher Datajack Peak State ------------ > --- POWER ------------ Light Nuclear Core > --- PROPULSION ------- Wheel Wheel > --- UTILITY ---------- Improved Heat Sink Small Storage Unit > --- WEAPON ----------- Particle Gun Light Assault Rifle > --- INVENTORY -------- Light Treads Light Treads Tractor Beam EM Pulse Gun Mini Grenade Launcher Mini Grenade Launcher Mini Grenade Launcher Mini Grenade Launcher [Rating: 13] Favorites ----------- Power Light Nuclear Core Engine Light Ion Engine Power Core Light Nuclear Core Propulsion Wheel Treads Light Treads Wheel Wheel Utility Medium Storage Unit Device Improved Heat Sink Storage Medium Storage Unit Processor Signal Interpreter Weapon Light Assault Rifle Energy Gun Particle Gun Ballistic Gun Light Assault Rifle Launcher Mini Grenade Launcher Build | -11 -10 -10 ------- Run | Scr Mat Min Slots Evolved . | . . . Power . | . . . Propulsion . | . . . Utility . | . . . Weapon . | . . . Parts Attached 36 | 7 15 14 Power 5 | 1 1 3 Engine 3 | 1 . 2 Core 2 | . 1 1 Reactor . | . . . Propulsion 9 | 2 3 4 Treads 1 | . 1 . Leg . | . . . Wheel 8 | 2 2 4 Hover . | . . . Flight . | . . . Utility 7 | 2 5 . Device 3 | 2 1 . Storage 2 | . 2 . Processor 2 | . 2 . Hackware . | . . . Protection . | . . . Artifact . | . . . Weapon 15 | 2 6 7 Energy Gun 4 | 1 3 . Energy Cannon . | . . . Ballistic Gun 7 | 1 2 4 Ballistic Cannon . | . . . Launcher 4 | . 1 3 Special Weapon . | . . . Impact Weapon . | . . . Slashing Weapon . | . . . Piercing Weapon . | . . . Special Melee Weapon . | . . . Unidentified Prototypes . | . . . Parts Lost 8 | . 1 7 Power 2 | . . 2 Propulsion 2 | . . 2 Utility 1 | . 1 . Weapon 3 | . . 3 Highest Loss Streak 3 | . 1 3 To Critical Strikes . | . . . Average Slot Usage (%) 98 | . 99 97 Engine 5 | . 3 9 Core 7 | . 10 3 Treads 3 | . 6 . Wheel 23 | . 21 26 Device 5 | . 7 . Storage 14 | . 14 14 Processor 8 | . 6 14 Energy Gun 5 | . 7 . Ballistic Gun 22 | . 20 27 Naked Turns . | . . . Heaviest Build 18 | 8 18 18 Greatest Support 26 | 20 26 26 Greatest Overweight (x) 1 | . 1 1 Average Overweight (x) . | . . . Largest Inventory Capacity 10 | 5 10 10 Average Capacity 8 | 5 8 10 Most Carried 10 | 4 10 10 Average Carried 8 | 3 8 9 Final Capacity 10 | 5 10 10 Final Carried 10 | 4 10 9 Class Distribution -------------------- 62% | Mutant 37% | Scavenger-Mutant Dominant Class ---------------- Mutant | -10/Materials Scavenger-Mutant | -10/Mines Resources | -11 -10 -10 ----------- Run | Scr Mat Min Matter Collected 738 | 277 239 222 Remotely 53 | 53 . . Salvage Created 823 | 156 515 152 Parts 62 | 9 41 12 Haulers Intercepted 2 | . 2 . Recyclers Shooed 2 | 1 1 . Parts Field Recycled . | . . . Retrieved Matter . | . . . Parts Self-Destructed . | . . . Prevented . | . . . Kills | -11 -10 -10 ------- Run | Scr Mat Min Combat Hostiles Destroyed 22 | . 11 11 Guns 13 | . 8 5 AOE 9 | . 3 6 Classes Destroyed 10 | 2 6 2 Worker 1 | . 1 . Builder 1 | . . 1 Tunneler 3 | 3 . . Hauler 2 | . 2 . Recycler 2 | 1 1 . Operator 1 | . 1 . Watcher 2 | . 2 . Swarmer 6 | . 3 3 Grunt 10 | . 8 2 Assembled 6 | . . 6 Best Kill Streak 6 | 4 6 4 Combat Bots Only 4 | . 4 4 Max Kills in Single Turn 3 | 2 3 2 Gunslinging . | . . . Exploded 2 | . 2 2 Melee . | . . . Uniques/NPCs Destroyed . | . . . Combat | -11 -10 -10 -------- Run | Scr Mat Min Damage Taken 1045 | . 412 633 Core 256 | . 83 173 Absorbed by Shields . | . . . Core Remaining (%) 100 | 100 . . Volleys Fired 83 | 7 47 29 Largest 2 | 2 2 2 Hottest 85 | 60 85 50 Shots Fired 155 | 14 91 50 Gun 145 | 14 88 43 Cannon . | . . . Launcher 10 | . 3 7 Special . | . . . Kinetic 103 | 7 53 43 Thermal 35 | . 35 . Explosive 10 | . 3 7 Electromagnetic 7 | 7 . . Robot Hit Streak 18 | 7 18 9 Robot Miss Streak 3 | 2 3 3 Penetration Max . | . . . Secondary Targets 2 | . 1 1 Max Gunslinging Chain 1 | . 1 1 Shots Hit Robots 110 | 10 70 30 Core Hits 63 | 6 32 25 Critical Kills 1 | . 1 . Critical Parts Destroyed . | . . . Critical Strikes 2 | . 2 . Burn 1 | . 1 . Destroy 1 | . 1 . Melee Attacks . | . . . Impact . | . . . Slashing . | . . . Piercing . | . . . Sneak Attacks . | . . . Combat Hostiles . | . . . Follow-up Attacks . | . . . Damage Inflicted 2143 | 237 1104 802 Guns 1126 | 115 755 256 Cannons . | . . . Explosions 1017 | 122 349 546 Melee . | . . . Ramming . | . . . Kinetic 661 | 33 372 256 Thermal 505 | 122 383 . Explosive 895 | . 349 546 Electromagnetic 82 | 82 . . Impact . | . . . Slashing . | . . . Piercing . | . . . Highest Corruption . | . . . Average Corruption . | . . . Corruption Purged . | . . . Corruption Blocked . | . . . Overload Shots . | . . . Overflow Damage 33 | . 12 21 Projectiles . | . . . Explosions 33 | . 12 21 Melee . | . . . Knockbacks . | . . . Impact . | . . . Kinetic . | . . . Secondary . | . . . Self-Inflicted Damage 116 | . 32 84 Shots 4 | . 1 3 Rammed . | . . . Targets Rammed . | . . . Kicked . | . . . Crushed . | . . . Highest Temperature 268 | 20 268 100 Average Temperature 57 | 15 68 39 Received Heat Transfer 445 | . 219 226 Siege Activations . | . . . Robots Corrupted . | . . . Combat Hostiles . | . . . Parts Fried 2 | 2 . . Impact Corruptions . | . . . Robots Melted . | . . . Combat Hostiles . | . . . Parts Melted 2 | . 2 . Heat Transferred 1078 | 150 928 . Parts Sabotaged . | . . . Parts Stolen . | . . . Parts Stripped . | . . . Power Chain Reactions 1 | 1 . . Missiles Intercepted . | . . . Alert | -11 -10 -10 ------- Run | Scr Mat Min Peak Influence 289 | 20 274 289 Initial 13 | . 13 11 Average 155 | 6 147 191 Maximum Alert Level 1 | . 1 1 Low Security (%) 54 | 100 58 40 Level 1 45 | . 41 59 Level 2 . | . . . Level 3 . | . . . Level 4 . | . . . Level 5 . | . . . High Security . | . . . Max Security . | . . . Squads Dispatched 4 | . 4 . Investigation 3 | . 3 . Extermination . | . . . Reinforcement 1 | . 1 . Assault . | . . . Garrison . | . . . Intercept . | . . . Searches Triggered . | . . . Construction Impeded . | . . . Haulers Reinforced . | . . . Active Scanning Responses . | . . . Cargo Convoy Interrupts . | . . . Stealth | -11 -10 -10 --------- Run | Scr Mat Min Distress Signals 1 | . 1 . Communications Jammed . | . . . Distress Signals . | . . . Times Spotted 31 | . 17 14 Peak Tracking Total 5 | . 5 5 Tactical Retreats 3 | . 1 2 Traps | -11 -10 -10 ------- Run | Scr Mat Min Traps Triggered . | . . . Indirectly . | . . . Trap Hack Attempts . | . . . Triggered . | . . . Disarmed . | . . . Reprogrammed . | . . . Reused . | . . . Traps Extracted . | . . . Installed . | . . . Triggered . | . . . Machines | -11 -10 -10 ---------- Run | Scr Mat Min Machines Disabled 3 | . 1 2 Max in Single Turn 2 | . 1 2 Machines Sabotaged . | . . . Garrisons Compromised . | . . . Overloaded Fab Kills . | . . . Hacking | -11 -10 -10 --------- Run | Scr Mat Min Machines Accessed 11 | . 11 . Terminals 8 | . 8 . Fabricators . | . . . Repair Stations 1 | . 1 . Recycling Units 2 | . 2 . Scanalyzers . | . . . Garrison Access . | . . . Total Hacks 50 | . 50 . Successful 32 | . 32 . Failed 18 | . 18 . Catastrophic . | . . . Database Lockouts . | . . . Manual 34 | . 34 . Terminals 44 | . 44 . Fabricators . | . . . Repair Stations 1 | . 1 . Recycling Units 5 | . 5 . Scanalyzers . | . . . Garrison Access . | . . . Terminal Hacks 18 | . 18 . Robot Analysis 6 | . 6 . Prototype ID Bank 3 | . 3 . Level Access Points 1 | . 1 . Branch Access Points 1 | . 1 . Terminal Index 1 | . 1 . Unreport Threat 3 | . 3 . Locate Traps 2 | . 2 . Hauler Manifests 1 | . 1 . Fabricator Hacks . | . . . Repair Station Hacks . | . . . Recycling Unit Hacks 2 | . 2 . Retrieve Components 2 | . 2 . Scanalyzer . | . . . Garrison Access Hacks . | . . . Unauthorized Hacks 12 | . 12 . Terminals 9 | . 9 . Track 1 | . 1 . Assimilate 1 | . 1 . Botnet 6 | . 6 . Operators 1 | . 1 . Fabricators . | . . . Repair Stations 1 | . 1 . Mechanics 1 | . 1 . Recycling Units 2 | . 2 . Tunnel 2 | . 2 . Scanalyzers . | . . . Garrison Access . | . . . Data Cores Recovered . | . . . Used . | . . . Hacking Detections 11 | . 11 . Full Trace Events 2 | . 2 . Feedback Events . | . . . Feedback Blocked . | . . . Robot Schematics Acquired . | . . . Robots Built . | . . . Authchips . | . . . Time . | . . . Total Robot Build Rating . | . . . Part Schematics Acquired . | . . . Parts Built . | . . . Authchips . | . . . Time . | . . . Total Part Build Rating . | . . . Parts Repaired . | . . . Time . | . . . Parts Recycled . | . . . Recycled Matter . | . . . Retrieved Matter . | . . . Retrieved Components 11 | . 11 . Parts Scanalyzed . | . . . Part Schematics Acquired . | . . . Parts Damaged . | . . . Bothacking | -11 -10 -10 ------------ Run | Scr Mat Min Used RIF Installer . | . . . Robots Hacked . | . . . Non-combat . | . . . Combat . | . . . Robot Hacks Applied . | . . . Relay Couplers Released . | . . . Fabnet Peak Effective % . | . . . Robots Rewired . | . . . Allies Hacked . | . . . Hacks Repelled . | . . . Allies | -11 -10 -10 -------- Run | Scr Mat Min Total Allies . | . . . Largest Group . | . . . Highest-Rated Group . | . . . Highest-Rated Ally . | . . . Total Orders . | . . . Ally Attacks . | . . . Total Damage . | . . . Kills . | . . . Allies Corrupted . | . . . Allies Melted . | . . . Intel | -11 -10 -10 ------- Run | Scr Mat Min Robot Analysis Total 6 | . 6 . Derelict Logs Recovered 1 | . . 1 Drone Launches . | . . . Drone Recoveries . | . . . Exploration | -11 -10 -10 ------------- Run | Scr Mat Min Turns Passed 1199 | 61 739 399 Spaces Moved 878 | 34 538 306 Core 1 | 1 . . Treads 26 | . 26 . Legs . | . . . Wheels 851 | 33 512 306 Hover . | . . . Flight . | . . . Fastest Speed 50 | 50 80 90 Average Speed 93 | 79 95 90 Slowest Speed 160 | 80 160 115 Overloaded Moves . | . . . Propulsion Burnouts . | . . . Robots Hopped . | . . . Cave-ins Triggered . | . . . Exploration Rate (%) 52 | 3 98 56 Regions Visited 2 Branch Regions 1 Pre-discovered Areas 3 | . 2 1 Known Exits Taken 1 | . 1 . Unknown Exits Taken 1 | 1 . . Scrap Searched 1 | . . 1 Spaces Dug . | . . . Terrain Destroyed 78 | 2 13 63 Melee . | . . . Projectile . | . . . AOE 78 | 2 13 63 Terrain Rammed . | . . . Walls Destroyed . | . . . Machines Disabled . | . . . Actions | -11 -10 -10 --------- Run | Scr Mat Min Total 1120 | 51 684 385 Wait 81 | . 54 27 Move 876 | 33 537 306 Hop . | . . . Pick Up 20 | 4 13 3 Fast Attach 17 | 7 6 4 Attach 4 | . 2 2 Detach 3 | . 3 . Swap 15 | . 7 8 Drop 21 | . 15 6 Fire 83 | 7 47 29 Melee . | . . . Ram . | . . . Kick . | . . . Crush . | . . . Escape Stasis . | . . . Rewire . | . . . Trap . | . . . Miscellaneous . | . . . Route ------- -11/Scrapyard -10/Materials (discovered 5 exits: *Mat x3 / *Min x2) -10/Mines History --------- Turn | Location | Event 19 | -11/Scrapyard | Discovered new exit (range 16) 62 | -11/Scrapyard | Entered Materials 141 | -10/Materials | Discovered new exit (range 12) 142 | -10/Materials | Identified exit to Mines 151 | -10/Materials | Identified exit to Materials 308 | -10/Materials | Build established: Mutant 801 | -10/Materials | Entered Mines 823 | -10/Mines | Met a Derelict bent on vengeance 911 | -10/Mines | Learned location of Mines (-8) 928 | -10/Mines | Assembled infested the area 933 | -10/Mines | Assisted by a Guerilla fighting off Assembled 987 | -10/Mines | Core integrity fell below 50% 1193 | -10/Mines | Core integrity fell below 20% 1200 | -10/Mines | Destroyed by D-53 Grenadier with Mini Grenade Launcher Last Messages --------------- 01178_ U-05 Engineer lays Concrete. 01180_ U-05 Engineer builds a Wall. 01180_ K-01 Serf collects debris. 01184_ U-05 Engineer lays Concrete. 01185_ K-01 Serf collects debris. 01185_ U-05 Engineer lays Concrete. 01186_ U-05 Engineer builds a Wall. 01188_ K-01 Serf collects debris. 01192_ K-01 Serf destroyed. 01192_ U-05 Engineer lays Concrete. 01194_ Lgt. Assault Rifle destroyed. 01194_ U-05 Engineer lays Concrete. 01196_ The unstable cave ceiling collapses. 01196_ U-05 Engineer lays Concrete. 01196_ Wheel destroyed. 01197_ U-05 Engineer destroyed. 01197_ U-05 Engineer lays Concrete. 01198_ Mni. Grenade Launcher destroyed. 01199_ U-05 Engineer lays Concrete. 01200_ U-05 Engineer builds a Wall. Map ----- +----------------------------------------------------+ | ??????????????????????????????????????? | | ??????????????????????????????????????? | | ??????????????????????????????????????? | | ??????????????????????????????????????? | | ??????????????????????????????????????? | | ??????????????????????????????????????? | | ??????????????????????????????????????? | | ??????????????????????????????????????? | | ??????????????????????????????????????? | | ??????????????????????????????????????? | | ??????????????????#???????????????????? | | ????????????????? #???????????????????? | | ???????"????????? ##??????????????????? | | ????? ???????# k##?????????????????? | | ?????? ##?#### ??????????????????? | | ??????? ## ?##???????????????? | | ??????? ? ##??????????????? | | ???????? % ? #??????????????? | | ????????? ? ???????????????? | | ????????## d % ????????????????? | | ????????# %! # #?????????????????# | | ????????? #?????????????????? | | ?????????## ###???????????????? | | ?????????# ????????????????? | | ??????#### ###????????????????? | | ??????# @ #????????????????? | | ?????## ##????????????????? | | ?????# #?????????????????? | | ?????## u## ##??????????????????# | | ??????# # # #???????????????????# | | ??????# ## ###?????????????????# | | ??????# #"##########????????# | | ?????## r % ! #????????# | | ????## = % #????????# | | ????# ############ #????????# | | ????# ##?????????# #????????# | | ????# ###??????????# ########## | | ????## <#????????????# |! % | | ?????## #???????????##! ########## | | ?????## ##?????????## ! # ######?# | | ?????# #?????????# # ! # ###### | | ?????# #?????????## # # ## | | ?????# ##????????## # | | ?????## ##?????????# # | | ??????# #??????????# ### | | ?????? #??????????# # # | | ????? #?????????# ##### ## | | ????? ##????????# ##???###### | | ???? ####????????# ####?????????# | | ??? #???????????# #?????????????# | +----------------------------------------------------+ Best States ------------- Heat Dissipation 39 Energy Generation 14 Energy Capacity 250 Matter Stores 300 Matter Capacity 300 Sight Range 18 Terrain Scan Density 10 Evasion (%) 44 Recoil Reduction 1 Item Schematics ----------------- None Robot Schematics ------------------ None Fabricated ------------ Nothing Alien Tech Used ----------------- None Achievements -------------- None Challenges ------------ None Game ------ Seed GammaLauncherShearcannon Manual? 0 Play Time 00:14:49 Cumulative 498.1 hours Start 2022.05.24 @ 11:38:24 End 2022.05.24 @ 11:53:26 Sessions 1 Manual Loads 0 Difficulty Rogue Special Mode None Game No. 410 Rogue 410 Adventurer 0 Explorer 0 Win Type - Total 3 Types 2/0/0/1/0/0/0/0/0 Lore% 69 Gallery% 80 Achievement% 66 Wizard Run 0 Options --------- ASCII 0 Keyboard 1 Movement Numpad Keybinds 0 Fullscreen 1 Font 12/Terminus Map View 83x54 Tactical HUD 1 Map Filters NONE Filters NONE Steam 1 RUN: eb3b0a0d-ed77-4349-8b77-0ef00d98152b